[Event "Titled Tuesday Blitz October 31 Early 2023"]
[White "Sharapov, Evgeny"]
[Black "Karolczuk, Iwo"]
[WhiteFideId "14103133"]
[BlackFideId "21816972"]
[WhiteElo "2661"]
[BlackElo "2833"]
[Result "1-0"]
[Round "3"]
[TimeControl "180+1"]
[Date "2023.10.31"]
[WhiteClock "0:01:18"]
[BlackClock "0:00:05"]
[Board "24"]

1. e4 {[%clk 0:03:00]}  e6 {[%clk 0:03:00]} 2. d4 {[%clk 0:02:59]}  d5 {[%clk 0:03:00]} 3. Nc3 {[%clk 0:02:59]}  Nf6 {[%clk 0:03:00]} 4. e5 {[%clk 0:02:59]}  Nfd7 {[%clk 0:03:01]} 5. f4 {[%clk 0:03:00]}  c5 {[%clk 0:03:01]} 6. Nf3 {[%clk 0:03:00]}  Nc6 {[%clk 0:03:01]} 7. Be3 {[%clk 0:03:00]}  a6 {[%clk 0:03:02]} 8. Qd2 {[%clk 0:02:59]}  b5 {[%clk 0:03:01]} 9. Nd1 {[%clk 0:02:59]}  b4 {[%clk 0:03:00]} 10. c3 {[%clk 0:02:59]}  Qa5 {[%clk 0:02:57]} 11. Be2 {[%clk 0:02:55]}  bxc3 {[%clk 0:02:51]} 12. bxc3 {[%clk 0:02:54]}  cxd4 {[%clk 0:02:51]} 13. Nxd4 {[%clk 0:02:54]}  Nxd4 {[%clk 0:02:50]} 14. Bxd4 {[%clk 0:02:54]}  Bc5 {[%clk 0:02:49]} 15. O-O {[%clk 0:02:53]}  O-O {[%clk 0:02:43]} 16. Kh1 {[%clk 0:02:51]}  Rb8 {[%clk 0:02:41]} 17. Ne3 {[%clk 0:02:50]}  Bxd4 {[%clk 0:01:54]} 18. Qxd4 {[%clk 0:02:49]}  f6 {[%clk 0:01:54]} 19. exf6 {[%clk 0:02:41]}  Nxf6 {[%clk 0:01:55]} 20. Bd3 {[%clk 0:02:36]}  Bd7 {[%clk 0:01:53]} 21. c4 {[%clk 0:02:24]}  Qb6 {[%clk 0:01:39]} 22. Qxb6 {[%clk 0:02:17]}  Rxb6 {[%clk 0:01:40]} 23. cxd5 {[%clk 0:02:17]}  exd5 {[%clk 0:01:39]} 24. Rab1 {[%clk 0:02:16]}  Rfb8 {[%clk 0:01:38]} 25. Rxb6 {[%clk 0:02:15]}  Rxb6 {[%clk 0:01:39]} 26. Rb1 {[%clk 0:02:14]}  Rxb1+ {[%clk 0:01:38]} 27. Bxb1 {[%clk 0:02:14]}  Bb5 {[%clk 0:01:34]} 28. Nf5 {[%clk 0:02:09]}  g6 {[%clk 0:01:20]} 29. Nd4 {[%clk 0:02:07]}  Bc4 {[%clk 0:01:19]} 30. Kg1 {[%clk 0:02:07]}  Kf7 {[%clk 0:01:18]} 31. Kf2 {[%clk 0:02:07]}  Ng4+ {[%clk 0:01:17]} 32. Kg3 {[%clk 0:02:05]}  Ne3 {[%clk 0:01:16]} 33. Kf3 {[%clk 0:01:56]}  Nd1 {[%clk 0:01:12]} 34. a3 {[%clk 0:01:49]}  Ke7 {[%clk 0:01:06]} 35. g4 {[%clk 0:01:48]}  Nc3 {[%clk 0:01:04]} 36. Bc2 {[%clk 0:01:45]}  Kf6 {[%clk 0:00:56]} 37. Ke3 {[%clk 0:01:41]}  h6 {[%clk 0:00:53]} 38. h4 {[%clk 0:01:41]}  g5 {[%clk 0:00:49]} 39. fxg5+ {[%clk 0:01:41]}  hxg5 {[%clk 0:00:50]} 40. h5 {[%clk 0:01:41]}  Kg7 {[%clk 0:00:31]} 41. Nf5+ {[%clk 0:01:35]}  Kh8 {[%clk 0:00:31]} 42. Nd6 {[%clk 0:01:27]}  Be2 {[%clk 0:00:05]} 43. h6 {[%clk 0:01:20]}  Bxg4 {[%clk 0:00:04]} 44. Nf7+ {[%clk 0:01:18]}  Kg8 {[%clk 0:00:05]} 45. h7+ {[%clk 0:01:18]}  Kxf7 {[%clk 0:00:05]} 46. h8=Q {[%clk 0:01:18]} 1-0


[Site "https://www.chess.com"]

[Event "Titled Tuesday Blitz October 31 Early 2023"]
[White "Mitrabha, Guha"]
[Black "Barrientos, Sergio E"]
[WhiteFideId "5057000"]
[BlackFideId "4401824"]
[WhiteElo "2827"]
[BlackElo "2645"]
[Result "1/2-1/2"]
[Round "3"]
[TimeControl "180+1"]
[Date "2023.10.31"]
[WhiteClock "0:00:14"]
[BlackClock "0:00:22"]
[Board "25"]

1. Nf3 {[%clk 0:02:54]}  g6 {[%clk 0:02:54]} 2. g3 {[%clk 0:02:52]}  Bg7 {[%clk 0:02:54]} 3. Bg2 {[%clk 0:02:53]}  Nf6 {[%clk 0:02:54]} 4. c4 {[%clk 0:02:52]}  O-O {[%clk 0:02:54]} 5. Nc3 {[%clk 0:02:53]}  c6 {[%clk 0:02:52]} 6. e4 {[%clk 0:02:47]}  d5 {[%clk 0:02:46]} 7. e5 {[%clk 0:02:41]}  Nfd7 {[%clk 0:02:42]} 8. d4 {[%clk 0:02:29]}  dxc4 {[%clk 0:02:38]} 9. h4 {[%clk 0:02:27]}  c5 {[%clk 0:02:30]} 10. h5 {[%clk 0:02:23]}  cxd4 {[%clk 0:02:30]} 11. Qxd4 {[%clk 0:02:19]}  Nxe5 {[%clk 0:02:23]} 12. Qh4 {[%clk 0:02:19]}  Bf5 {[%clk 0:01:58]} 13. Nxe5 {[%clk 0:02:15]}  Bxe5 {[%clk 0:01:55]} 14. hxg6 {[%clk 0:02:15]}  Bxg6 {[%clk 0:01:54]} 15. Be4 {[%clk 0:02:13]}  Qd6 {[%clk 0:01:42]} 16. Bxb7 {[%clk 0:01:35]}  Nc6 {[%clk 0:01:35]} 17. Bxa8 {[%clk 0:01:35]}  Rxa8 {[%clk 0:01:36]} 18. Be3 {[%clk 0:01:34]}  Bf6 {[%clk 0:01:24]} 19. Qf4 {[%clk 0:01:16]}  Ne5 {[%clk 0:01:23]} 20. O-O {[%clk 0:01:15]}  Bg5 {[%clk 0:01:09]} 21. Rad1 {[%clk 0:00:47]}  Qe6 {[%clk 0:00:58]} 22. Qxg5 {[%clk 0:00:19]}  Nf3+ {[%clk 0:00:58]} 23. Kg2 {[%clk 0:00:20]}  Nxg5 {[%clk 0:00:58]} 24. Bxg5 {[%clk 0:00:21]}  Rb8 {[%clk 0:00:52]} 25. Rd2 {[%clk 0:00:21]}  f6 {[%clk 0:00:49]} 26. Bf4 {[%clk 0:00:18]}  Rb7 {[%clk 0:00:49]} 27. Rfd1 {[%clk 0:00:18]}  Kf7 {[%clk 0:00:47]} 28. f3 {[%clk 0:00:16]}  Bd3 {[%clk 0:00:47]} 29. Kf2 {[%clk 0:00:16]}  Qb6+ {[%clk 0:00:46]} 30. Be3 {[%clk 0:00:17]}  Qa5 {[%clk 0:00:46]} 31. Rh1 {[%clk 0:00:17]}  Rd7 {[%clk 0:00:41]} 32. Rh4 {[%clk 0:00:17]}  Qd8 {[%clk 0:00:36]} 33. Rh6 {[%clk 0:00:13]}  Bg6 {[%clk 0:00:35]} 34. Rxd7 {[%clk 0:00:13]}  Qxd7 {[%clk 0:00:36]} 35. Rh4 {[%clk 0:00:14]}  Qd3 {[%clk 0:00:36]} 36. Rd4 {[%clk 0:00:14]}  Qc2+ {[%clk 0:00:35]} 37. Rd2 {[%clk 0:00:15]}  Qf5 {[%clk 0:00:36]} 38. Nd5 {[%clk 0:00:15]}  Qb1 {[%clk 0:00:27]} 39. Nc3 {[%clk 0:00:14]}  Qh1 {[%clk 0:00:26]} 40. Bxa7 {[%clk 0:00:13]}  Bd3 {[%clk 0:00:25]} 41. Ne2 {[%clk 0:00:11]}  Qh2+ {[%clk 0:00:22]} 42. Ke3 {[%clk 0:00:11]}  Bxe2 {[%clk 0:00:20]} 43. Rxe2 {[%clk 0:00:12]}  Qg1+ {[%clk 0:00:20]} 44. Rf2 {[%clk 0:00:11]}  Qxg3 {[%clk 0:00:21]} 45. Bd4 {[%clk 0:00:11]}  h5 {[%clk 0:00:20]} 46. a4 {[%clk 0:00:11]}  h4 {[%clk 0:00:21]} 47. a5 {[%clk 0:00:11]}  e5 {[%clk 0:00:20]} 48. Bb6 {[%clk 0:00:10]}  Qf4+ {[%clk 0:00:19]} 49. Ke2 {[%clk 0:00:10]}  Qf5 {[%clk 0:00:18]} 50. Kd2 {[%clk 0:00:10]}  Qd3+ {[%clk 0:00:18]} 51. Kc1 {[%clk 0:00:10]}  c3 {[%clk 0:00:19]} 52. bxc3 {[%clk 0:00:10]}  Qxc3+ {[%clk 0:00:19]} 53. Rc2 {[%clk 0:00:11]}  Qe1+ {[%clk 0:00:19]} 54. Kb2 {[%clk 0:00:11]}  Qb4+ {[%clk 0:00:19]} 55. Ka2 {[%clk 0:00:11]}  h3 {[%clk 0:00:20]} 56. Rh2 {[%clk 0:00:11]}  Qc4+ {[%clk 0:00:19]} 57. Kb2 {[%clk 0:00:12]}  Qc8 {[%clk 0:00:18]} 58. Ka3 {[%clk 0:00:11]}  Qc3+ {[%clk 0:00:17]} 59. Ka4 {[%clk 0:00:11]}  Qxf3 {[%clk 0:00:18]} 60. a6 {[%clk 0:00:11]}  Qc6+ {[%clk 0:00:17]} 61. Ka5 {[%clk 0:00:11]}  Qc3+ {[%clk 0:00:17]} 62. Kb5 {[%clk 0:00:11]}  Qb3+ {[%clk 0:00:18]} 63. Kc6 {[%clk 0:00:11]}  Ke6 {[%clk 0:00:18]} 64. Kb7 {[%clk 0:00:10]}  Qd5+ {[%clk 0:00:18]} 65. Kb8 {[%clk 0:00:10]}  Qd6+ {[%clk 0:00:17]} 66. Kb7 {[%clk 0:00:10]}  Qd7+ {[%clk 0:00:17]} 67. Kb8 {[%clk 0:00:10]}  Qe8+ {[%clk 0:00:17]} 68. Kb7 {[%clk 0:00:09]}  Qf7+ {[%clk 0:00:17]} 69. Bc7 {[%clk 0:00:09]}  Kd7 {[%clk 0:00:14]} 70. Rd2+ {[%clk 0:00:09]}  Ke8 {[%clk 0:00:14]} 71. Rd8+ {[%clk 0:00:09]}  Ke7 {[%clk 0:00:15]} 72. a7 {[%clk 0:00:10]}  Qb3+ {[%clk 0:00:15]} 73. Bb6 {[%clk 0:00:10]}  Qf3+ {[%clk 0:00:14]} 74. Kb8 {[%clk 0:00:10]}  h2 {[%clk 0:00:14]} 75. Rh8 {[%clk 0:00:10]}  h1=Q {[%clk 0:00:14]} 76. Rxh1 {[%clk 0:00:11]}  Qxh1 {[%clk 0:00:15]} 77. a8=Q {[%clk 0:00:11]}  Qxa8+ {[%clk 0:00:16]} 78. Kxa8 {[%clk 0:00:12]}  Kd6 {[%clk 0:00:16]} 79. Kb7 {[%clk 0:00:13]}  f5 {[%clk 0:00:17]} 80. Bc7+ {[%clk 0:00:12]}  Kd5 {[%clk 0:00:18]} 81. Kb6 {[%clk 0:00:13]}  f4 {[%clk 0:00:18]} 82. Kb5 {[%clk 0:00:13]}  Kd4 {[%clk 0:00:19]} 83. Kb4 {[%clk 0:00:13]}  Kd3 {[%clk 0:00:20]} 84. Bxe5 {[%clk 0:00:13]}  f3 {[%clk 0:00:20]} 85. Bg3 {[%clk 0:00:14]}  Ke2 {[%clk 0:00:21]} 86. Kc3 {[%clk 0:00:14]}  f2 {[%clk 0:00:22]} 87. Bxf2 {[%clk 0:00:14]} 1/2-1/2


[Site "https://www.chess.com"]

[Event "Titled Tuesday Blitz October 31 Early 2023"]
[White "Principe, Gerson"]
[Black "Hambleton, Aman"]
[WhiteFideId "3804550"]
[BlackFideId "2606577"]
[WhiteElo "2632"]
[BlackElo "2808"]
[Result "0-1"]
[Round "3"]
[TimeControl "180+1"]
[Date "2023.10.31"]
[WhiteClock "0:00:02"]
[BlackClock "0:00:05"]
[Board "27"]

1. d4 {[%clk 0:02:58]}  Nf6 {[%clk 0:02:58]} 2. Nf3 {[%clk 0:02:57]}  e6 {[%clk 0:02:54]} 3. c4 {[%clk 0:02:57]}  b6 {[%clk 0:02:55]} 4. g3 {[%clk 0:02:57]}  Ba6 {[%clk 0:02:46]} 5. b3 {[%clk 0:02:56]}  Bb7 {[%clk 0:02:45]} 6. Bg2 {[%clk 0:02:56]}  Bb4+ {[%clk 0:02:45]} 7. Bd2 {[%clk 0:02:56]}  c5 {[%clk 0:02:45]} 8. dxc5 {[%clk 0:02:43]}  Bxc5 {[%clk 0:02:41]} 9. O-O {[%clk 0:02:43]}  O-O {[%clk 0:02:41]} 10. Nc3 {[%clk 0:02:36]}  a6 {[%clk 0:02:34]} 11. Na4 {[%clk 0:02:33]}  Be7 {[%clk 0:02:30]} 12. Be3 {[%clk 0:02:31]}  b5 {[%clk 0:02:31]} 13. Nb6 {[%clk 0:02:28]}  Ra7 {[%clk 0:02:30]} 14. Nxd7 {[%clk 0:02:12]}  Nbxd7 {[%clk 0:01:42]} 15. Bxa7 {[%clk 0:02:10]}  bxc4 {[%clk 0:01:42]} 16. bxc4 {[%clk 0:02:10]}  Qa8 {[%clk 0:01:43]} 17. Be3 {[%clk 0:01:58]}  Rc8 {[%clk 0:01:43]} 18. Rc1 {[%clk 0:01:57]}  h6 {[%clk 0:01:43]} 19. Nh4 {[%clk 0:01:43]}  Bxg2 {[%clk 0:01:14]} 20. Nxg2 {[%clk 0:01:43]}  Qe4 {[%clk 0:01:14]} 21. f3 {[%clk 0:01:38]}  Qf5 {[%clk 0:01:05]} 22. Bf2 {[%clk 0:01:33]}  h5 {[%clk 0:00:55]} 23. Qc2 {[%clk 0:01:27]}  Qa5 {[%clk 0:00:48]} 24. Rfd1 {[%clk 0:01:25]}  Ne5 {[%clk 0:00:45]} 25. c5 {[%clk 0:01:06]}  Nfd7 {[%clk 0:00:30]} 26. Qd2 {[%clk 0:01:01]}  Qa4 {[%clk 0:00:14]} 27. f4 {[%clk 0:00:53]}  Nc6 {[%clk 0:00:14]} 28. Qxd7 {[%clk 0:00:52]}  Rd8 {[%clk 0:00:14]} 29. Rd4 {[%clk 0:00:25]}  Qa3 {[%clk 0:00:15]} 30. Qxd8+ {[%clk 0:00:23]}  Bxd8 {[%clk 0:00:12]} 31. Rdd1 {[%clk 0:00:22]}  Qxa2 {[%clk 0:00:08]} 32. Kf1 {[%clk 0:00:21]}  Bf6 {[%clk 0:00:07]} 33. Ne3 {[%clk 0:00:18]}  a5 {[%clk 0:00:05]} 34. Nc4 {[%clk 0:00:18]}  a4 {[%clk 0:00:03]} 35. Ne5 {[%clk 0:00:18]}  Bxe5 {[%clk 0:00:02]} 36. fxe5 {[%clk 0:00:19]}  Qb3 {[%clk 0:00:01]} 37. Rd6 {[%clk 0:00:18]}  Nxe5 {[%clk 0:00:02]} 38. c6 {[%clk 0:00:18]}  Qb2 {[%clk 0:00:02]} 39. Rdd1 {[%clk 0:00:15]}  Nxc6 {[%clk 0:00:02]} 40. Rxc6 {[%clk 0:00:15]}  a3 {[%clk 0:00:02]} 41. Bd4 {[%clk 0:00:12]}  Qb7 {[%clk 0:00:02]} 42. Rdc1 {[%clk 0:00:11]}  a2 {[%clk 0:00:02]} 43. Kf2 {[%clk 0:00:12]}  f6 {[%clk 0:00:03]} 44. Rc8+ {[%clk 0:00:12]}  Kh7 {[%clk 0:00:03]} 45. R8c4 {[%clk 0:00:12]}  e5 {[%clk 0:00:02]} 46. Ba1 {[%clk 0:00:12]}  Qb6+ {[%clk 0:00:02]} 47. Kg2 {[%clk 0:00:13]}  Qb7+ {[%clk 0:00:03]} 48. Kf2 {[%clk 0:00:12]}  Qb6+ {[%clk 0:00:03]} 49. Kg2 {[%clk 0:00:12]}  Qe3 {[%clk 0:00:04]} 50. R4c2 {[%clk 0:00:10]}  Qe4+ {[%clk 0:00:04]} 51. Kf2 {[%clk 0:00:10]}  h4 {[%clk 0:00:04]} 52. gxh4 {[%clk 0:00:10]}  Qf4+ {[%clk 0:00:05]} 53. Kg2 {[%clk 0:00:10]}  Qg4+ {[%clk 0:00:06]} 54. Kf2 {[%clk 0:00:11]}  Qxh4+ {[%clk 0:00:07]} 55. Kg2 {[%clk 0:00:11]}  Qg4+ {[%clk 0:00:07]} 56. Kf2 {[%clk 0:00:12]}  Qh4+ {[%clk 0:00:08]} 57. Kg2 {[%clk 0:00:12]}  Kg6 {[%clk 0:00:08]} 58. Rc3 {[%clk 0:00:07]}  Qe4+ {[%clk 0:00:07]} 59. Kf2 {[%clk 0:00:07]}  Qh4+ {[%clk 0:00:07]} 60. Kg2 {[%clk 0:00:07]}  Kf7 {[%clk 0:00:05]} 61. Rc7+ {[%clk 0:00:07]}  Ke6 {[%clk 0:00:06]} 62. R7c3 {[%clk 0:00:08]}  Qe4+ {[%clk 0:00:06]} 63. Kf2 {[%clk 0:00:08]}  Qf4+ {[%clk 0:00:06]} 64. Kg2 {[%clk 0:00:08]}  g5 {[%clk 0:00:04]} 65. Rc6+ {[%clk 0:00:08]}  Kf7 {[%clk 0:00:04]} 66. Rc7+ {[%clk 0:00:09]}  Kg6 {[%clk 0:00:05]} 67. R7c3 {[%clk 0:00:10]}  Qe4+ {[%clk 0:00:05]} 68. Kf2 {[%clk 0:00:10]}  g4 {[%clk 0:00:05]} 69. R1c2 {[%clk 0:00:06]}  Qf4+ {[%clk 0:00:04]} 70. Kg2 {[%clk 0:00:06]}  Qe4+ {[%clk 0:00:04]} 71. Kf2 {[%clk 0:00:06]}  Qh1 {[%clk 0:00:04]} 72. Rc1 {[%clk 0:00:06]}  Qxh2+ {[%clk 0:00:04]} 73. Ke3 {[%clk 0:00:07]}  Qf4+ {[%clk 0:00:02]} 74. Kd3 {[%clk 0:00:06]}  g3 {[%clk 0:00:03]} 75. Kc2 {[%clk 0:00:05]}  g2 {[%clk 0:00:03]} 76. Rg1 {[%clk 0:00:04]}  Qf2 {[%clk 0:00:03]} 77. Rxg2+ {[%clk 0:00:03]}  Qxg2 {[%clk 0:00:04]} 78. Kb3 {[%clk 0:00:03]}  Qxe2 {[%clk 0:00:03]} 79. Rc2 {[%clk 0:00:04]}  Qb5+ {[%clk 0:00:03]} 80. Kxa2 {[%clk 0:00:04]}  f5 {[%clk 0:00:03]} 81. Rg2+ {[%clk 0:00:03]}  Kf6 {[%clk 0:00:03]} 82. Rb2 {[%clk 0:00:02]}  Qa4+ {[%clk 0:00:03]} 83. Kb1 {[%clk 0:00:03]}  Qd1+ {[%clk 0:00:04]} 84. Ka2 {[%clk 0:00:03]}  f4 {[%clk 0:00:04]} 85. Rb6+ {[%clk 0:00:03]}  Kf5 {[%clk 0:00:04]} 86. Rb2 {[%clk 0:00:03]}  Qa4+ {[%clk 0:00:05]} 87. Kb1 {[%clk 0:00:03]}  f3 {[%clk 0:00:05]} 88. Rc2 {[%clk 0:00:03]}  Qxc2+ {[%clk 0:00:05]} 89. Kxc2 {[%clk 0:00:02]}  f2 {[%clk 0:00:05]} 0-1


[Site "https://www.chess.com"]

[Event "Titled Tuesday Blitz October 31 Early 2023"]
[White "Kamsky, Gata"]
[Black "Ginzburg, Yakov"]
[WhiteFideId "2000024"]
[BlackFideId "4157176"]
[WhiteElo "2808"]
[BlackElo "2617"]
[Result "1-0"]
[Round "3"]
[TimeControl "180+1"]
[Date "2023.10.31"]
[WhiteClock "0:01:57"]
[BlackClock "0:00:16"]
[Board "28"]

1. e4 {[%clk 0:03:00]}  c5 {[%clk 0:02:59]} 2. Nf3 {[%clk 0:03:00]}  e6 {[%clk 0:02:59]} 3. d4 {[%clk 0:02:57]}  cxd4 {[%clk 0:02:59]} 4. Nxd4 {[%clk 0:02:57]}  Nf6 {[%clk 0:02:59]} 5. Nc3 {[%clk 0:02:56]}  Nc6 {[%clk 0:02:59]} 6. Ndb5 {[%clk 0:02:56]}  Bb4 {[%clk 0:02:58]} 7. a3 {[%clk 0:02:55]}  Bxc3+ {[%clk 0:02:58]} 8. Nxc3 {[%clk 0:02:55]}  d5 {[%clk 0:02:58]} 9. exd5 {[%clk 0:02:54]}  exd5 {[%clk 0:02:59]} 10. Bd3 {[%clk 0:02:54]}  O-O {[%clk 0:02:59]} 11. O-O {[%clk 0:02:54]}  d4 {[%clk 0:02:57]} 12. Ne4 {[%clk 0:02:54]}  Bf5 {[%clk 0:02:55]} 13. Bg5 {[%clk 0:02:53]}  Bxe4 {[%clk 0:02:50]} 14. Bxe4 {[%clk 0:02:53]}  h6 {[%clk 0:02:50]} 15. Bxf6 {[%clk 0:02:51]}  Qxf6 {[%clk 0:02:50]} 16. Qf3 {[%clk 0:02:51]}  Qxf3 {[%clk 0:02:22]} 17. Bxf3 {[%clk 0:02:47]}  Ne5 {[%clk 0:02:21]} 18. Bxb7 {[%clk 0:02:28]}  Rab8 {[%clk 0:02:21]} 19. Be4 {[%clk 0:02:28]}  Rxb2 {[%clk 0:02:20]} 20. Rfb1 {[%clk 0:02:29]}  Rfb8 {[%clk 0:02:15]} 21. Rxb2 {[%clk 0:02:28]}  Rxb2 {[%clk 0:02:15]} 22. Rd1 {[%clk 0:02:19]}  Ra2 {[%clk 0:01:58]} 23. f4 {[%clk 0:02:18]}  Ng6 {[%clk 0:01:58]} 24. Rxd4 {[%clk 0:02:16]}  Rxa3 {[%clk 0:01:52]} 25. Rd8+ {[%clk 0:02:15]}  Nf8 {[%clk 0:01:10]} 26. f5 {[%clk 0:02:08]}  Rc3 {[%clk 0:00:58]} 27. Kf2 {[%clk 0:02:04]}  a5 {[%clk 0:00:27]} 28. Ra8 {[%clk 0:02:03]}  Rc5 {[%clk 0:00:25]} 29. Ke3 {[%clk 0:02:02]}  g6 {[%clk 0:00:25]} 30. Kd4 {[%clk 0:01:59]}  Rc7 {[%clk 0:00:20]} 31. fxg6 {[%clk 0:01:57]}  fxg6 {[%clk 0:00:20]} 32. Bxg6 {[%clk 0:01:57]}  Rxc2 {[%clk 0:00:16]} 33. Bxc2 {[%clk 0:01:57]} 1-0


[Site "https://www.chess.com"]

[Event "Titled Tuesday Blitz October 31 Early 2023"]
[White "Bodnaruk, Anastasia"]
[Black "Vakhlamov, Igor L."]
[WhiteFideId "4181751"]
[BlackFideId "24126748"]
[WhiteElo "2614"]
[BlackElo "2797"]
[Result "0-1"]
[Round "3"]
[TimeControl "180+1"]
[Date "2023.10.31"]
[WhiteClock "0:00:00"]
[BlackClock "0:01:31"]
[Board "30"]

1. e4 {[%clk 0:03:00]}  c5 {[%clk 0:03:00]} 2. Nc3 {[%clk 0:03:00]}  e6 {[%clk 0:03:00]} 3. Nf3 {[%clk 0:02:56]}  Nc6 {[%clk 0:03:00]} 4. Bb5 {[%clk 0:02:56]}  Nge7 {[%clk 0:03:00]} 5. Bxc6 {[%clk 0:02:54]}  Nxc6 {[%clk 0:03:01]} 6. d4 {[%clk 0:02:55]}  cxd4 {[%clk 0:02:59]} 7. Nxd4 {[%clk 0:02:55]}  a6 {[%clk 0:02:55]} 8. O-O {[%clk 0:02:53]}  Nxd4 {[%clk 0:02:55]} 9. Qxd4 {[%clk 0:02:53]}  b5 {[%clk 0:02:56]} 10. Re1 {[%clk 0:02:44]}  Bb7 {[%clk 0:02:56]} 11. Nd5 {[%clk 0:02:40]}  Rc8 {[%clk 0:02:47]} 12. Bf4 {[%clk 0:02:23]}  f6 {[%clk 0:02:44]} 13. Bg3 {[%clk 0:01:26]}  Bc5 {[%clk 0:02:35]} 14. Qd3 {[%clk 0:01:21]}  exd5 {[%clk 0:02:31]} 15. exd5+ {[%clk 0:01:21]}  Kf7 {[%clk 0:02:31]} 16. d6 {[%clk 0:01:19]}  Re8 {[%clk 0:02:10]} 17. Qxh7 {[%clk 0:01:10]}  Re6 {[%clk 0:02:03]} 18. Rad1 {[%clk 0:00:55]}  Qh8 {[%clk 0:01:59]} 19. Qf5 {[%clk 0:00:24]}  g6 {[%clk 0:01:45]} 20. Qd3 {[%clk 0:00:18]}  Rce8 {[%clk 0:01:45]} 21. Qb3 {[%clk 0:00:12]}  Qh5 {[%clk 0:01:41]} 22. Qc3 {[%clk 0:00:08]}  Qd5 {[%clk 0:01:32]} 23. Qf3 {[%clk 0:00:00]}  Rxe1+ {[%clk 0:01:31]} 0-1


[Site "https://www.chess.com"]

[Event "Titled Tuesday Blitz October 31 Early 2023"]
[White "Saydaliev, Saidakbar"]
[Black "Nurmanova, Alua"]
[WhiteFideId "14203693"]
[BlackFideId "13729390"]
[WhiteElo "2786"]
[BlackElo "2604"]
[Result "0-1"]
[Round "3"]
[TimeControl "180+1"]
[Date "2023.10.31"]
[WhiteClock "0:00:12"]
[BlackClock "0:00:37"]
[Board "31"]

1. e4 {[%clk 0:03:00]}  c5 {[%clk 0:02:59]} 2. Nf3 {[%clk 0:03:01]}  d6 {[%clk 0:02:59]} 3. d4 {[%clk 0:03:01]}  cxd4 {[%clk 0:03:00]} 4. Nxd4 {[%clk 0:03:02]}  Nf6 {[%clk 0:03:01]} 5. Nc3 {[%clk 0:03:00]}  a6 {[%clk 0:03:01]} 6. Be3 {[%clk 0:03:00]}  e5 {[%clk 0:03:01]} 7. Nb3 {[%clk 0:03:00]}  Be6 {[%clk 0:02:59]} 8. h3 {[%clk 0:03:00]}  h5 {[%clk 0:02:58]} 9. Qf3 {[%clk 0:02:59]}  Nbd7 {[%clk 0:02:51]} 10. O-O-O {[%clk 0:02:57]}  Rc8 {[%clk 0:02:47]} 11. Kb1 {[%clk 0:02:52]}  Rxc3 {[%clk 0:02:43]} 12. bxc3 {[%clk 0:02:53]}  Qc7 {[%clk 0:02:43]} 13. Bg5 {[%clk 0:02:16]}  b5 {[%clk 0:02:29]} 14. Qe3 {[%clk 0:01:53]}  Nb6 {[%clk 0:01:53]} 15. f4 {[%clk 0:01:53]}  Na4 {[%clk 0:01:51]} 16. Rd3 {[%clk 0:01:53]}  Bc4 {[%clk 0:01:42]} 17. Rd2 {[%clk 0:01:42]}  Nxe4 {[%clk 0:01:39]} 18. fxe5 {[%clk 0:01:34]}  d5 {[%clk 0:01:13]} 19. Bxc4 {[%clk 0:01:29]}  Nxd2+ {[%clk 0:01:12]} 20. Nxd2 {[%clk 0:01:25]}  bxc4 {[%clk 0:01:11]} 21. Kc1 {[%clk 0:01:11]}  Bc5 {[%clk 0:01:08]} 22. Qg3 {[%clk 0:01:10]}  Qb8 {[%clk 0:01:02]} 23. Nb1 {[%clk 0:01:07]}  Qb2+ {[%clk 0:00:56]} 24. Kd2 {[%clk 0:01:07]}  d4 {[%clk 0:00:56]} 25. e6 {[%clk 0:00:47]}  fxe6 {[%clk 0:00:49]} 26. Qe5 {[%clk 0:00:43]}  O-O {[%clk 0:00:41]} 27. Qxe6+ {[%clk 0:00:36]}  Kh8 {[%clk 0:00:41]} 28. Ke2 {[%clk 0:00:17]}  Qxc2+ {[%clk 0:00:40]} 29. Nd2 {[%clk 0:00:12]}  Nxc3+ {[%clk 0:00:37]} 0-1


[Site "https://www.chess.com"]

[Event "Titled Tuesday Blitz October 31 Early 2023"]
[White "Guliev, Logman"]
[Black "Komov, Roman"]
[WhiteFideId "13400061"]
[BlackFideId "24175714"]
[WhiteElo "2572"]
[BlackElo "2780"]
[Result "0-1"]
[Round "3"]
[TimeControl "180+1"]
[Date "2023.10.31"]
[WhiteClock "0:00:00"]
[BlackClock "0:01:55"]
[Board "33"]

1. e4 {[%clk 0:03:00]}  c5 {[%clk 0:02:58]} 2. Nf3 {[%clk 0:02:58]}  d6 {[%clk 0:02:58]} 3. d4 {[%clk 0:02:58]}  cxd4 {[%clk 0:02:59]} 4. Nxd4 {[%clk 0:02:58]}  Nf6 {[%clk 0:03:00]} 5. Nc3 {[%clk 0:02:59]}  Nc6 {[%clk 0:03:00]} 6. Bg5 {[%clk 0:02:57]}  e6 {[%clk 0:03:01]} 7. Qd2 {[%clk 0:02:57]}  a6 {[%clk 0:03:01]} 8. O-O-O {[%clk 0:02:58]}  Bd7 {[%clk 0:03:02]} 9. f4 {[%clk 0:02:53]}  b5 {[%clk 0:03:02]} 10. Bxf6 {[%clk 0:02:52]}  gxf6 {[%clk 0:03:02]} 11. Nxc6 {[%clk 0:02:53]}  Bxc6 {[%clk 0:03:03]} 12. Bd3 {[%clk 0:02:53]}  h5 {[%clk 0:02:59]} 13. Kb1 {[%clk 0:02:52]}  b4 {[%clk 0:02:55]} 14. Ne2 {[%clk 0:02:50]}  Qb6 {[%clk 0:02:56]} 15. Rhf1 {[%clk 0:02:48]}  Qc5 {[%clk 0:02:48]} 16. Nc1 {[%clk 0:02:42]}  a5 {[%clk 0:02:47]} 17. Nb3 {[%clk 0:02:38]}  Qb6 {[%clk 0:02:47]} 18. Bc4 {[%clk 0:02:35]}  a4 {[%clk 0:02:26]} 19. Nd4 {[%clk 0:02:33]}  Bd7 {[%clk 0:02:26]} 20. f5 {[%clk 0:02:30]}  e5 {[%clk 0:02:26]} 21. Ne2 {[%clk 0:02:23]}  Rc8 {[%clk 0:02:26]} 22. b3 {[%clk 0:02:17]}  Qc5 {[%clk 0:02:07]} 23. Rf3 {[%clk 0:02:15]}  h4 {[%clk 0:02:07]} 24. Rd3 {[%clk 0:02:11]}  Bc6 {[%clk 0:02:05]} 25. Bd5 {[%clk 0:01:59]}  Bb5 {[%clk 0:02:05]} 26. Rh3 {[%clk 0:01:59]}  Bh6 {[%clk 0:01:56]} 27. Rxh4 {[%clk 0:01:46]}  Bxd2 {[%clk 0:01:56]} 28. Rxh8+ {[%clk 0:01:47]}  Ke7 {[%clk 0:01:56]} 29. Rxc8 {[%clk 0:01:47]}  Qxc8 {[%clk 0:01:57]} 30. Rxd2 {[%clk 0:01:46]}  a3 {[%clk 0:01:57]} 31. Kc1 {[%clk 0:00:42]}  Bxe2 {[%clk 0:01:54]} 32. Rxe2 {[%clk 0:00:42]}  Qc3 {[%clk 0:01:55]} 33. Bc4 {[%clk 0:00:37]}  Qa1+ {[%clk 0:01:54]} 34. Kd2 {[%clk 0:00:00]}  Qxa2 {[%clk 0:01:55]} 0-1


[Site "https://www.chess.com"]